bitfinex/quotes_ETHUSD_20250328
["timestamp","ask_amount","ask_price","bid_price","bid_amount"]
[1743164019443,5.27155,1897.0,1896.7,5.27217]
[1743164019873,7.346847,1897.0,1896.7,5.27217]
[1743164020088,7.346847,1897.0,1896.6,11.35502]
[1743164020251,5.27155,1897.0,1896.7,5.2723]
[1743164020455,5.27155,1897.0,1896.6,6.0826]
[1743164021413,5.27177,1896.9,1896.6,6.0826]
[1743164021586,5.27155,1897.0,1896.6,11.35497]
[1743164021896,5.27188,1896.9,1896.6,6.08257]
[1743164022877,5.2722,1896.8,1896.6,0.8102]
[1743164023079,5.27231,1896.7,1896.5,0.8084]
[1743164023287,5.27231,1896.7,1896.6,5.811]
[1743164024588,6.326756,1896.7,1896.4,5.27311]
[1743164024792,5.27342,1896.3,1895.6,0.8158]
[1743164025090,5.27565,1895.5,1895.4,15.4486]
[1743164025309,5.27565,1895.5,1895.4,21.2586]
[1743164025511,5.27565,1895.5,1895.4,5.81]
[1743164026876,5.66977672,1895.5,1895.4,5.81]
[1743164028269,0.39412672,1895.5,1895.4,5.81]
[1743164028475,0.39412672,1895.5,1895.4,14.53930382]
[1743164028670,0.39412672,1895.5,1895.4,18.08930382]
[1743164029479,0.39412672,1895.5,1895.4,42.78693]
[1743164030091,5.27502,1895.8,1895.4,42.78693]
[1743164030814,5.27502,1895.8,1895.4,48.06269]
[1743164030991,5.27502,1895.8,1895.4,42.78676]
[1743164031189,5.27457,1895.9,1895.4,42.78669]
[1743164031404,10.54932,1895.9,1895.4,45.42206382]
[1743164031707,10.5493,1895.9,1895.5,5.27552]
[1743164032307,5.27495,1895.8,1895.4,42.42206382]
[1743164032812,5.27495,1895.8,1895.4,47.69781382]
[1743164033513,5.27495,1895.8,1895.5,5.27556]
[1743164033809,5.27495,1895.8,1895.4,42.42206382]
[1743164034015,5.27495,1895.8,1895.4,47.69785382]
[1743164034370,5.2743,1896.0,1895.4,37.14637382]
[1743164034569,10.54874,1896.0,1895.6,5.27522]
[1743164034799,10.54873,1896.0,1895.6,5.27522]
[1743164035112,10.54876,1896.0,1895.6,5.27522]
[1743164035477,5.27458,1895.9,1895.6,5.27522]
[1743164036011,10.5488,1896.0,1895.6,5.27522]
[1743164037079,10.5488,1896.0,1895.6,10.55048]
[1743164037080,5.2743,1896.0,1895.6,10.55048]
[1743164037282,5.2743,1896.0,1895.7,5.27506]
[1743164037606,5.27402,1896.1,1895.8,5.27477]
[1743164037809,5.27402,1896.1,1895.9,5.807]
[1743164039402,7.90911382,1896.2,1895.9,5.807]
[1743164039604,5.27346,1896.3,1895.9,11.13420954]
[1743164039785,5.2737,1896.2,1895.9,11.08147]
[1743164040414,5.2737,1896.2,1895.9,11.08138]
[1743164040577,10.21,1896.1,1895.7,1.06534946]
[1743164040788,5.27453,1895.9,1895.8,5.806]
[1743164041018,7.90990382,1895.9,1895.8,5.806]
[1743164041178,5.27453,1895.9,1895.8,5.806]
[1743164043016,10.54869,1896.0,1895.8,5.806]
[1743164043611,5.27453,1895.9,1895.8,5.806]
[1743164046015,5.27408,1896.1,1895.8,5.806]
[1743164046192,10.21,1896.5,1896.1,5.27384]
[1743164046397,5.27344,1896.3,1896.0,5.27421]
[1743164047117,10.54653,1896.4,1896.0,10.54824]
[1743164047418,10.54653,1896.4,1895.8,5.806]
[1743164047419,5.27268,1896.6,1896.2,0.8224]
[1743164047721,5.27208,1896.8,1896.4,5.27293]
[1743164048015,10.54432,1896.8,1896.4,5.27293]
[1743164048214,5.27208,1896.8,1896.4,10.5459]
[1743164048419,10.54433,1896.8,1896.4,5.27293]
[1743164048616,5.66536008,1896.7,1896.3,11.07638]
[1743164049231,5.2726,1896.6,1896.4,5.803]
[1743164049882,8.73777721,1896.7,1896.4,5.803]
[1743164050114,5.27283,1896.6,1896.5,5.802]
[1743164050522,7.90771382,1896.7,1896.5,5.802]
[1743164050729,13.18020382,1896.7,1896.5,5.802]
[1743164051029,5.27259,1896.6,1896.5,5.802]
[1743164051523,5.66603905,1896.6,1896.5,5.802]
[1743164052399,5.27343,1896.3,1895.9,11.34573]
[1743164052728,5.27343,1896.3,1896.0,5.801]
[1743164052935,5.27343,1896.3,1896.0,11.07525]
[1743164053834,13.18181382,1896.4,1896.0,11.07509]
[1743164053995,5.27319,1896.4,1896.1,0.05273455]
[1743164054194,5.27319,1896.4,1896.0,16.34921]
[1743164054729,5.27292,1896.5,1896.2,5.27365]
[1743164055033,10.54596,1896.5,1896.1,5.27395]
[1743164055619,0.39401838,1896.4,1896.1,5.27395]
[1743164056245,0.39401838,1896.4,1896.1,5.27388]
[1743164056414,0.39401838,1896.4,1896.1,10.54774]
[1743164056614,0.39401838,1896.4,1896.1,5.27386]
[1743164056938,0.39401838,1896.4,1896.2,6.05028]
[1743164057141,0.39401838,1896.3,1896.2,6.05028]
[1743164057456,0.34401838,1896.3,1896.2,6.05028]
[1743164058451,5.2726,1896.6,1896.2,11.32377]
[1743164059547,10.54535,1896.6,1896.2,11.32377]
[1743164059841,5.2726,1896.6,1896.2,11.32377]
[1743164060046,5.2726,1896.6,1896.2,11.32389]
[1743164060546,10.54536,1896.6,1896.2,11.32389]
[1743164060848,5.27296,1896.5,1896.2,0.7768]
[1743164061346,5.27296,1896.5,1896.2,6.05049]
[1743164061511,5.27264,1896.6,1896.2,6.05049]
[1743164061716,5.27264,1896.6,1896.2,11.32394]
[1743164061916,5.27264,1896.6,1896.3,5.27342]
[1743164062542,10.54541,1896.6,1896.2,6.05025]
[1743164062716,5.27299,1896.5,1896.2,6.05025]
[1743164063242,5.27299,1896.5,1896.2,11.32381]
[1743164063453,15.48216,1896.8,1896.2,0.7768]
[1743164063653,20.75437,1896.8,1896.5,0.7581]
[1743164063958,15.48216,1896.8,1896.6,5.796]
[1743164064249,20.75437,1896.8,1896.6,5.796]
[1743164064444,5.27231,1896.7,1896.6,5.796]
[1743164065952,5.27276,1896.6,1896.3,5.27341]
[1743164066150,5.27287,1896.5,1896.4,5.795]
[1743164066325,5.2727,1896.6,1896.4,5.795]
[1743164066953,10.54546,1896.6,1896.4,5.795]
[1743164067255,5.27287,1896.5,1896.4,5.795]
[1743164067462,5.2727,1896.6,1896.4,5.795]
[1743164068533,13.18012382,1896.7,1896.4,5.795]
[1743164069156,5.27259,1896.6,1896.4,5.795]
[1743164070331,0.39377141,1896.5,1896.4,5.795]
[1743164073759,5.66664141,1896.5,1896.4,5.795]
[1743164074224,0.39377141,1896.5,1896.4,5.795]
[1743164080241,5.66664141,1896.5,1896.4,5.795]
[1743164080478,0.39377141,1896.5,1896.4,5.795]
[1743164080686,5.66664141,1896.5,1896.4,5.795]
[1743164081178,0.39377141,1896.5,1896.4,5.795]
[1743164081882,5.66664141,1896.5,1896.4,5.795]
[1743164082182,0.39377141,1896.5,1896.4,5.795]
[1743164082345,5.66664141,1896.5,1896.4,5.795]
[1743164082680,5.27287,1896.5,1896.4,5.795]
[1743164083079,5.27259,1896.6,1896.4,5.795]
[1743164083246,5.66705226,1896.5,1896.4,5.795]
[1743164086066,5.27383,1896.2,1896.0,28.6963]
[1743164086266,5.27383,1896.2,1896.1,5.786]
[1743164086441,8.30246608,1896.5,1896.1,5.786]
[1743164086442,5.2732,1896.4,1896.1,5.786]
[1743164086647,5.27318,1896.4,1896.2,0.813]
[1743164087775,0.39418226,1896.3,1896.2,0.813]
[1743164089077,0.39418226,1896.3,1896.2,6.0867]
[1743164089448,0.39418226,1896.3,1896.2,8.72207382]
[1743164090956,0.39418226,1896.3,1896.2,8.67917382]
[1743164091160,0.39418226,1896.3,1896.2,8.73190057]
[1743164091562,0.39418226,1896.3,1896.2,8.67917382]
[1743164092774,0.39418226,1896.3,1896.2,6.0438]
[1743164094057,0.39418226,1896.3,1896.2,7.10941748]
[1743164098286,5.27259,1896.6,1896.2,12.38311748]
[1743164098783,5.27296,1896.5,1896.2,7.10941748]
[1743164098992,0.39383662,1896.3,1896.2,7.10941748]
[1743164100393,0.39383662,1896.3,1896.2,7.16214602]
[1743164101094,0.39383662,1896.3,1896.2,7.10941748]
[1743164101590,0.39383662,1896.3,1896.2,10.10941748]
[1743164101591,6.62e-06,1896.3,1896.2,10.10941748]
[1743164101790,15.4804,1897.4,1897.0,5.27132]
[1743164101991,15.4804,1897.4,1897.1,5.78]
[1743164101992,6.8187,1897.3,1897.1,5.78]
[1743164103170,5.27066,1897.3,1897.1,5.78]
[1743164103374,7.90578382,1897.4,1897.1,5.78]
[1743164103895,13.17634382,1897.4,1897.1,5.78]
[1743164104597,5.27092,1897.2,1896.9,0.8131]
[1743164104764,5.27126,1897.1,1897.0,5.778]
[1743164105163,6.58901538,1897.1,1897.0,5.778]
[1743164105698,9.2243892,1897.1,1897.0,5.778]
[1743164106011,5.27176,1896.9,1896.5,6.07173]
[1743164106309,2.63537382,1896.9,1896.3,6.07224]
[1743164106598,5.2724,1896.7,1896.6,5.777]
[1743164107469,5.27259,1896.6,1896.3,5.27334]
[1743164107668,5.27259,1896.6,1896.2,5.27369]
[1743164107669,5.27259,1896.6,1896.4,6.8381676]
[1743164109109,5.27235,1896.7,1896.4,6.8381676]
[1743164109567,5.27235,1896.7,1896.4,12.1112276]
[1743164110703,5.27235,1896.7,1896.4,6.8381676]
[1743164110902,5.27271,1896.6,1896.4,6.8381676]
[1743164111200,5.27235,1896.7,1896.4,6.8381676]
[1743164112669,5.27235,1896.7,1896.4,12.1112776]
[1743164113088,0.79070538,1896.9,1896.5,6.06464]
[1743164113089,5.27183,1896.9,1896.5,6.06464]
[1743164113292,20.75317,1897.0,1896.6,5.2725]
[1743164113490,5.27179,1896.9,1896.5,11.33733]
[1743164114402,5.2721,1896.8,1896.5,0.7918]
[1743164114589,5.27239,1896.7,1896.6,5.774]
[1743164114879,5.66425147,1896.8,1896.6,5.774]
[1743164115100,0.39215147,1896.8,1896.6,5.774]
[1743164115270,0.39215147,1896.8,1896.6,11.04654]
[1743164115464,0.39215147,1896.8,1896.6,17.14052]
[1743164115696,0.39215147,1896.8,1896.6,11.86798]
[1743164115901,0.39215147,1896.8,1896.6,5.774]
[1743164116267,5.27217,1896.8,1896.6,5.774]
[1743164117105,5.27179,1896.9,1896.6,5.774]
[1743164117798,5.27209,1896.8,1896.6,5.774]
[1743164118103,0.39203566,1896.7,1896.6,5.774]
[1743164120506,0.39203566,1896.7,1896.6,11.04659]
[1743164120826,0.39203566,1896.7,1896.6,14.49346382]
[1743164121576,0.39203566,1896.7,1896.6,17.49346382]
[1743164121903,5.27093,1897.2,1896.9,5.27174]
[1743164122369,1.054158,1897.2,1897.0,5.771]
[1743164122574,5.2712,1897.1,1897.0,5.771]
[1743164123487,5.66307852,1897.1,1897.0,5.771]
[1743164124878,5.66307852,1897.1,1896.7,5.769]
[1743164124879,5.27203,1896.8,1896.7,5.769]
[1743164125074,5.27203,1896.8,1896.6,1.03260007]
[1743164125274,5.27203,1896.8,1896.7,5.769]
[1743164126418,5.66390852,1896.8,1896.7,5.769]
[1743164126772,5.27287,1896.5,1896.4,1.0428437]
[1743164126976,5.27287,1896.5,1896.4,6.8118437]
[1743164128018,5.66474852,1896.5,1896.4,6.8118437]
[1743164128518,5.66474852,1896.5,1896.4,6.8108437]
[1743164128675,5.66474852,1896.5,1896.4,5.768]
[1743164129785,4.12099219,1896.5,1896.0,7.62575866]
[1743164129989,5.27398,1896.1,1896.0,7.62575866]
[1743164130451,5.27398,1896.1,1896.0,13.39275866]
[1743164130609,7.90935382,1896.1,1896.0,7.62575866]
[1743164130947,5.27521,1895.7,1895.5,0.8206]
[1743164131145,5.27521,1895.7,1895.6,5.767]
[1743164132239,5.66708852,1895.7,1895.6,5.767]
[1743164133542,5.27521,1895.7,1895.6,5.767]
[1743164134243,15.48428,1896.0,1895.7,6.0735]
[1743164134444,15.48428,1896.0,1895.8,5.767]
[1743164134632,5.27468,1895.9,1895.8,5.767]
[1743164135406,5.27379,1896.2,1895.8,5.767]
[1743164135713,6.01,1896.7,1895.8,5.767]
[1743164135714,5.27261,1896.6,1896.2,0.8079]
[1743164135909,5.27261,1896.6,1896.3,5.766]
[1743164136463,15.4823,1896.8,1896.3,5.766]
[1743164136747,5.27246,1896.7,1896.4,5.27313]
[1743164137113,10.54495,1896.7,1896.3,13.67466382]
[1743164137314,5.27246,1896.7,1896.3,18.94794382]
[1743164138042,15.48208,1896.8,1896.4,5.27299]
[1743164138342,20.75432,1896.8,1896.5,0.759]
[1743164138535,5.27233,1896.7,1896.5,0.759]
[1743164139611,5.27259,1896.6,1896.5,0.759]
[1743164139818,5.27233,1896.7,1896.5,0.759]
[1743164142615,5.27259,1896.6,1896.4,1.06402982]
[1743164143952,5.27233,1896.7,1896.4,1.06402982]
[1743164144445,2.63537382,1896.9,1896.4,1.06402982]
[1743164144648,5.27314,1896.4,1896.0,33.55259652]
[1743164144942,5.27314,1896.4,1896.1,6.5937]
[1743164144943,10.54645,1896.4,1896.1,6.5937]
[1743164145111,5.27314,1896.4,1896.1,6.5937]
[1743164145315,5.27314,1896.4,1896.2,1.04020784]
[1743164145516,10.54484,1896.7,1896.4,0.7622]
[1743164145718,5.27274,1896.6,1896.4,0.7622]
[1743164146452,5.27287,1896.5,1896.4,0.7622]
[1743164147352,5.27274,1896.6,1896.4,0.7622]
[1743164147552,10.54554,1896.6,1896.4,0.7622]
[1743164148546,5.27287,1896.5,1896.4,0.7622]
[1743164148753,5.27315,1896.4,1896.2,1.86200784]
[1743164148958,5.27342,1896.3,1896.2,1.04020784]
[1743164149151,5.27342,1896.3,1896.2,6.80020784]
[1743164149350,5.27342,1896.3,1896.2,5.76]
[1743164150856,5.27398,1896.1,1896.0,0.8094]
[1743164151156,5.27381,1896.2,1896.0,6.5694]
[1743164151755,5.27398,1896.1,1896.0,1.07474414]
[1743164151960,5.27549,1895.6,1895.4,28.7083]
[1743164152124,5.27565,1895.5,1895.2,6.10262]
[1743164152328,5.27565,1895.5,1895.3,5.759]
[1743164152523,5.27593,1895.4,1895.3,1.0543384]
[1743164152741,5.27593,1895.4,1895.3,6.8133384]
[1743164153881,7.91130382,1895.4,1895.0,27.882]
[1743164154182,7.91130382,1895.4,1894.7,7.91314382]
[1743164154183,10.55491,1894.9,1894.7,0.8069]
[1743164154350,5.27734,1894.9,1894.8,5.759]
[1743164155929,10.21,1895.2,1894.8,5.759]
[1743164156267,5.27604,1895.4,1894.9,7.91244382]
[1743164156467,5.27621,1895.3,1894.9,5.27707]
[1743164156769,5.27665,1895.2,1894.8,16.31404]
[1743164157071,5.27665,1895.2,1894.9,5.27732]
[1743164157540,10.55334,1895.2,1895.0,1.05349332]
[1743164157741,8.96735782,1895.2,1894.7,0.8069]
[1743164157955,5.27738,1894.9,1894.8,5.759]
[1743164159669,10.55551,1894.8,1894.6,1.0601483]
[1743164159857,5.27788,1894.7,1894.6,1.0601483]
[1743164160042,5.27788,1894.7,1894.6,6.8181483]
[1743164160245,5.27767,1894.8,1894.6,6.8181483]
[1743164160965,5.27767,1894.8,1894.7,5.758]
[1743164163273,5.27788,1894.7,1894.6,1.0601483]
[1743164163475,5.27788,1894.7,1894.6,6.8181483]
[1743164164859,18.12245382,1895.0,1894.6,6.8181483]
[1743164164860,5.27732,1894.9,1894.6,6.8181483]
[1743164165063,10.55482,1894.9,1894.6,6.8181483]
[1743164165267,5.27732,1894.9,1894.6,6.8181483]
[1743164165446,5.27761,1894.8,1894.6,6.8181483]
[1743164165642,5.27732,1894.9,1894.6,6.8181483]
[1743164165975,10.55484,1894.9,1894.6,6.8181483]
[1743164166173,10.55478,1894.9,1894.6,6.8181483]
[1743164166378,5.27732,1894.9,1894.6,6.8181483]
[1743164166773,10.21,1895.0,1894.8,8.67627382]
[1743164166973,10.21,1895.0,1894.9,5.27732]
[1743164167143,10.21,1895.0,1894.8,8.67627382]
[1743164167343,5.2765,1895.2,1894.8,8.67619382]
[1743164167544,5.2765,1895.2,1894.9,10.55444]
[1743164167757,5.27649,1895.2,1894.9,5.27721]
[1743164167974,10.55268,1895.3,1894.9,5.27716]
[1743164168189,5.27658,1895.2,1894.9,5.27716]
[1743164168498,5.27703,1895.1,1894.8,0.7634]
[1743164168669,5.27714,1895.0,1894.8,0.7634]
[1743164169270,5.27703,1895.1,1894.8,6.0409]
[1743164169688,2.63537382,1895.3,1894.9,5.27707]
[1743164169689,5.27638,1895.3,1894.9,5.27707]
[1743164169894,5.27638,1895.3,1894.9,10.55416]
[1743164170099,5.27654,1895.2,1894.9,5.27707]
[1743164170463,5.27638,1895.3,1894.9,10.55425]
[1743164170700,5.27652,1895.2,1894.8,8.67627382]
[1743164170869,10.55324,1895.2,1894.8,11.3184]
[1743164171060,5.27652,1895.2,1894.8,11.3184]
[1743164171264,5.27652,1895.2,1894.9,6.33289725]
[1743164171566,5.27622,1895.3,1894.9,11.61001725]
[1743164171787,10.55261,1895.3,1894.9,11.60993725]
[1743164171960,10.55261,1895.3,1894.9,6.33271725]
[1743164172294,5.27622,1895.3,1894.9,11.60994725]
[1743164172594,5.27659,1895.2,1894.9,11.60994725]
[1743164172967,5.27622,1895.3,1894.9,11.60994725]
[1743164173365,10.55266,1895.3,1894.9,6.33271725]
[1743164173582,10.55266,1895.3,1895.0,5.277]
[1743164173583,5.27622,1895.3,1895.0,5.277]
[1743164173789,5.27622,1895.3,1895.1,5.755]
[1743164174797,5.27595,1895.4,1895.1,5.755]
[1743164174977,5.27578,1895.5,1895.1,17.13248]
[1743164175176,5.27596,1895.4,1895.1,11.85583]
[1743164175406,10.21,1895.6,1895.1,6.5793]
[1743164175407,10.55268,1895.3,1895.1,6.5793]
[1743164175626,5.27648,1895.2,1895.1,5.755]
[1743164176185,6.331758,1895.2,1895.1,5.755]
[1743164176374,5.27773,1894.8,1894.6,27.901]
[1743164176621,5.27773,1894.8,1894.7,5.754]
[1743164176980,10.55429,1895.0,1894.7,5.754]
[1743164177394,10.55428,1895.0,1894.7,5.754]
[1743164177695,10.473532,1895.0,1894.7,5.754]
[1743164178106,5.27732,1894.9,1894.7,5.754]
[1743164179702,20.76371,1895.1,1894.7,11.03169]
[1743164180007,5.27709,1895.0,1894.7,11.03169]
[1743164180196,5.27709,1895.0,1894.8,0.7822]
[1743164180434,10.21,1895.1,1894.8,0.7822]
[1743164180589,10.21,1895.1,1894.9,5.2772]
[1743164181342,10.21,1895.1,1894.8,13.97241382]
[1743164181506,10.21,1895.1,1894.8,13.97245382]
[1743164181687,10.21,1895.1,1894.9,5.27729]
[1743164182102,5.27653,1895.2,1894.9,5.27729]
[1743164182613,10.5532,1895.2,1894.8,13.97243382]
[1743164182828,5.27653,1895.2,1894.9,5.27729]
[1743164183325,0.39150671,1895.1,1895.0,6.06945]
[1743164183619,0.39150671,1895.1,1895.0,8.70482382]
[1743164184127,0.39150671,1895.1,1895.0,9.8190658]
[1743164184308,0.39150671,1895.1,1895.0,9.76630584]
[1743164185009,5.27595,1895.4,1895.0,7.13093202]
[1743164185207,5.803545,1895.4,1895.0,18.15781202]
[1743164185380,5.27595,1895.4,1895.1,5.27675]
[1743164185700,5.27569,1895.5,1895.1,5.27657]
[1743164185870,0.39140614,1895.3,1895.1,5.27657]
[1743164186659,0.39140614,1895.3,1895.1,10.55319]
[1743164186973,0.39140614,1895.3,1895.1,5.27657]
[1743164187411,0.39140614,1895.3,1895.0,15.51638584]
[1743164187585,10.21,1895.6,1895.2,3.45577382]
[1743164187787,5.82378,1896.2,1895.2,3.45577382]
[1743164187788,8.27481,1895.8,1895.2,3.45577382]
[1743164188086,10.5518,1895.5,1895.2,0.8204]
[1743164188284,5.27595,1895.4,1895.2,0.8204]
[1743164188501,5.27595,1895.4,1895.1,6.5694]
[1743164188809,5.66715531,1895.4,1895.1,6.5694]
[1743164189018,10.94326531,1895.4,1895.1,6.5694]
[1743164189174,5.27623,1895.3,1895.1,6.5694]
[1743164189902,10.94328531,1895.4,1895.1,6.5694]
[1743164190105,5.27625,1895.3,1895.1,6.5694]
[1743164190515,5.27598,1895.4,1895.1,6.5694]
[1743164190725,5.27603,1895.4,1895.1,6.5694]
[1743164190887,5.27603,1895.4,1895.1,11.84595]
[1743164191414,10.5515,1895.5,1895.1,11.84595]
[1743164191632,5.27569,1895.5,1895.1,17.12257]
[1743164191916,10.55152,1895.5,1895.1,11.84595]
[1743164192818,10.21,1895.6,1895.1,6.5694]
[1743164193015,15.48551,1895.6,1895.3,5.27597]
[1743164193520,5.27567,1895.5,1895.2,5.27629]
[1743164194218,15.48551,1895.6,1895.3,5.27607]
[1743164194820,20.76113,1895.6,1895.2,5.27637]
[1743164195523,5.27565,1895.5,1895.2,5.27637]
[1743164196721,5.27565,1895.5,1895.1,17.1226]
[1743164196920,5.27565,1895.5,1895.2,5.27648]
[1743164197423,0.39096709,1895.4,1895.2,5.27648]
[1743164198136,0.39096709,1895.4,1895.3,1.07149462]
[1743164198814,5.27572,1895.5,1895.3,1.07149462]
[1743164199697,5.27513,1895.7,1895.4,5.2758]
[1743164199899,5.27452,1896.0,1895.4,3.50973006]
[1743164200114,5.27452,1896.0,1895.8,0.8216]
[1743164200115,5.27444,1896.0,1895.8,0.8216]
[1743164200407,10.54818,1896.1,1895.9,5.743]
[1743164200619,5.27426,1896.0,1895.9,5.743]
[1743164200990,9.7554092,1896.0,1895.9,5.743]
[1743164201595,10.14651086,1896.0,1895.9,5.743]
[1743164202429,7.51113704,1896.0,1895.9,5.743]
[1743164203430,5.66536166,1896.0,1895.9,5.743]
[1743164205132,8.30073548,1896.0,1895.9,5.743]
[1743164206201,5.27576,1895.5,1895.2,33.93447]
[1743164206552,5.27543,1895.6,1895.3,6.78768193]
[1743164206553,10.5509,1895.6,1895.3,6.78768193]
[1743164207045,5.27565,1895.5,1895.3,6.78768193]
[1743164207241,10.5509,1895.6,1895.3,1.04768193]
[1743164207421,5.27565,1895.5,1895.4,5.74]
[1743164207617,5.27593,1895.4,1895.3,1.04768193]
[1743164207926,5.2762,1895.3,1895.2,27.896]
[1743164208241,5.2762,1895.3,1895.2,33.635]
[1743164208537,5.27773,1894.8,1894.7,1.03024699]
[1743164208739,5.27773,1894.8,1894.7,5.739]
[1743164210509,5.27788,1894.7,1894.6,1.03151498]
[1743164210731,5.27788,1894.7,1894.6,6.77051498]
[1743164211242,0.39075065,1894.8,1894.2,31.94468393]
[1743164211444,5.27824,1894.6,1894.4,5.738]
[1743164211942,5.27791,1894.7,1894.4,5.738]
[1743164212102,5.27836,1894.6,1894.4,5.738]
[1743164212302,5.27843,1894.5,1894.4,5.738]
[1743164214149,5.27836,1894.6,1894.4,5.738]
[1743164214445,10.55721,1894.5,1894.2,32.99712085]
[1743164214649,5.27871,1894.4,1894.3,5.738]
[1743164217243,5.27871,1894.4,1894.2,27.894]
[1743164217244,5.27899,1894.3,1894.2,27.894]
[1743164217551,5.27927,1894.2,1894.1,0.05]
[1743164217714,5.27927,1894.2,1894.1,5.788]
[1743164219232,5.27927,1894.2,1894.1,0.05]
[1743164219435,6.335096,1894.2,1894.1,5.787]
[1743164219747,8.97046982,1894.2,1894.1,0.05]
[1743164220444,19.18046982,1894.2,1894.1,0.05]
[1743164220643,16.545096,1894.2,1894.1,0.05]
[1743164221946,19.18046982,1894.2,1894.1,0.05]
[1743164226137,19.18046982,1894.2,1894.1,0.15227622]
[1743164227643,5.282,1893.3,1893.1,0.1119534]
[1743164227843,5.28206,1893.2,1893.1,0.1119534]
[1743164228352,15.49206,1893.2,1893.1,0.1119534]
[1743164228556,20.20483982,1893.2,1893.1,0.1119534]
[1743164230125,5.28123,1893.5,1893.1,0.1119534]
[1743164230329,5.28167,1893.4,1893.2,0.8026]
[1743164230933,5.28178,1893.3,1893.2,0.8026]
[1743164231368,5.28178,1893.3,1893.1,0.1119534]
[1743164231695,5.28198,1893.3,1893.1,0.1119534]
[1743164231823,5.28195,1893.3,1893.1,0.1119534]
[1743164232029,5.28206,1893.2,1893.1,0.1119534]
[1743164232430,5.28206,1893.2,1893.1,5.8479534]
[1743164233168,5.28206,1893.2,1893.1,0.1119534]
[1743164233337,5.28206,1893.2,1893.1,5.8479534]
[1743164233535,5.28206,1893.2,1893.1,0.1119534]
[1743164233740,6.68117162,1893.2,1893.1,0.1119534]
[1743164234265,5.28195,1893.3,1893.1,0.1119534]
[1743164234470,5.28206,1893.2,1893.1,0.1119534]
[1743164240863,15.49206,1893.2,1893.1,0.1119534]
[1743164241070,15.88224538,1893.2,1893.1,0.1119534]
[1743164243003,18.88224538,1893.2,1893.1,0.1119534]
[1743164243267,21.5622023,1893.2,1893.1,0.1119534]
[1743164246379,15.88224538,1893.2,1893.1,0.1119534]
[1743164246560,5.67224538,1893.2,1893.1,0.1119534]
[1743164246768,5.67224538,1893.2,1892.5,6.3497497]
[1743164246769,5.28792,1891.1,1890.5,0.207]
[1743164246968,5.56,1891.2,1890.1,0.04071465]
[1743164247170,5.28852,1890.9,1890.5,3.14073029]
[1743164247369,7.15060233,1891.3,1890.6,17.95494498]
[1743164247688,7.15060233,1891.3,1890.8,2.63537382]
[1743164247689,0.827,1891.3,1890.8,2.63537382]
[1743164247885,0.827,1891.3,1890.9,5.895]
[1743164247886,5.28811,1891.1,1890.9,5.895]
[1743164248189,6.11449,1891.3,1890.9,5.895]
[1743164248390,5.28766,1891.2,1890.9,5.895]
[1743164248588,5.28806,1891.1,1890.6,3.45827382]
[1743164248742,3.51112152,1891.2,1890.7,5.903]
[1743164248947,5.28784,1891.2,1890.7,5.903]
[1743164249381,5.28808,1891.1,1890.7,5.903]
[1743164249554,5.28778,1891.2,1890.7,5.903]
[1743164249754,5.2883,1891.0,1890.7,5.903]
[1743164250351,5.28904,1890.7,1890.6,0.8229]
[1743164250552,5.2885,1890.9,1890.6,6.7349]
[1743164250881,10.21,1891.2,1890.6,12.0242]
[1743164251078,10.21,1891.2,1890.7,5.28897]
[1743164251279,15.49784,1891.2,1890.7,0.10474852]
[1743164251458,10.21,1891.2,1890.7,5.42298053]
[1743164251655,15.49789,1891.2,1890.7,0.13410053]
[1743164252059,15.4978,1891.2,1890.7,0.13410053]
[1743164252384,0.827,1891.3,1891.2,5.28764]
[1743164252686,0.827,1891.3,1891.2,11.20264]
[1743164253082,5.28606,1891.8,1891.3,5.28726]
[1743164253285,5.28583,1891.9,1891.4,33.23107]
[1743164253490,5.28609,1891.8,1891.4,27.944]
[1743164253655,5.28609,1891.8,1891.5,0.1322701]
[1743164254286,5.28625,1891.7,1891.5,0.1322701]
[1743164254596,7.92907224,1891.6,1891.5,0.1322701]
[1743164254881,7.92907224,1891.6,1891.5,6.0362701]
[1743164255306,8.41417436,1891.6,1891.5,6.0362701]
[1743164255603,0.48510212,1891.6,1891.5,6.0362701]
[1743164255904,0.48510212,1891.6,1891.5,12.1392701]
[1743164256706,15.49526,1892.1,1891.6,5.28628]
[1743164256856,10.21,1892.1,1891.5,6.8524701]
[1743164257060,10.21,1892.1,1891.7,5.40743759]
[1743164257263,5.28486,1892.2,1891.7,5.28611]
[1743164257469,5.28404,1892.5,1892.0,5.28517]
[1743164257704,10.56892,1892.4,1892.1,5.902]
[1743164257881,10.56892,1892.4,1892.1,6.01690876]
[1743164258072,5.28441,1892.4,1892.1,6.01690876]
[1743164258476,5.28441,1892.4,1892.1,0.11490876]
[1743164258477,5.28459,1892.3,1892.1,0.11490876]
[1743164258680,5.28457,1892.3,1892.2,5.903]
[1743164258984,5.28441,1892.4,1892.2,5.903]
[1743164259303,5.28457,1892.3,1892.2,6.01790876]
[1743164259497,5.28441,1892.4,1892.2,6.01790876]
[1743164259693,5.28457,1892.3,1892.2,6.01790876]
[1743164260371,6.341468,1892.3,1892.2,6.00990876]
[1743164260566,9.341468,1892.3,1892.2,6.00990876]
[1743164260781,19.551468,1892.3,1892.2,6.00990876]
[1743164260981,19.551468,1892.3,1892.2,5.895]
[1743164261372,20.03665152,1892.3,1892.2,5.895]
[1743164262630,10.69518352,1892.3,1892.2,5.895]
[1743164262809,15.97975352,1892.3,1892.2,5.895]
[1743164263198,10.21,1892.3,1892.2,5.895]
[1743164263416,15.49457,1892.3,1892.2,5.895]